fUST/lending_fUST_20250921
["ID","MTS","AMOUNT","RATE_DAILY","PERIOD"]
[386666614,1758455462328,-793.7,0.00021095,2]
[386666616,1758455462338,-480.0,0.00021095,2]
[386666618,1758455462348,-480.0,0.00021095,2]
[386666620,1758455462357,-480.0,0.00021095,2]
[386666622,1758455462367,-1034.45,0.00021095,2]
[386666624,1758455462377,-480.0,0.00021095,2]
[386666626,1758455462386,-595.15,0.00021095,2]
[386666628,1758455462396,-480.0,0.00021095,2]
[386666630,1758455462411,-480.0,0.00021095,2]
[386666632,1758455462421,-746.69,0.00021095,2]
[386666634,1758455462431,-480.0,0.00021095,2]
[386666636,1758455462441,-1331.21,0.00021095,2]
[386666638,1758455462450,-1041.37,0.00021095,2]
[386666640,1758455462460,-496.58980733,0.00021095,2]
[386666642,1758455462469,-833.47,0.00021095,2]
[386666644,1758455462478,-480.0,0.00021095,2]
[386666646,1758455462487,-509.80161875,0.00021095,2]
[386666648,1758455462497,-1633.93,0.00021095,2]
[386666650,1758455462506,-480.0,0.00021095,2]
[386666652,1758455462515,-480.0,0.00021095,2]
[386666654,1758455462526,-11074.35,0.00021095,2]
[386666656,1758455462535,-247.42720563,0.00021095,2]
[386666658,1758455462545,-480.0,0.00021095,2]
[386666660,1758455462555,-1864.11,0.00021095,2]
[386666662,1758455462564,-493.12,0.00021095,2]
[386666664,1758455462573,-480.0,0.00021095,2]
[386666666,1758455462583,-480.0,0.00021095,2]
[386666668,1758455462593,-151.0,0.00021116,2]
[386666670,1758455462602,-151.0,0.00021116,2]
[386666672,1758455462611,-2000.0,0.00021116,2]
[386666674,1758455462622,-2000.0,0.00021116,2]
[386666676,1758455462632,-2000.0,0.00021116,2]
[386666678,1758455462641,-14842.30340254,0.00021133,2]
[386666680,1758455462651,-500.0,0.00021148,2]
[386666682,1758455462660,-1000.0,0.00021157,2]
[386666684,1758455462670,-151.0,0.00021165,2]
[386666686,1758455462680,-151.0,0.00021165,2]
[386666688,1758455462690,-500.0,0.0002117,2]
[386666690,1758455462700,-500.0,0.0002117,2]
[386666692,1758455462709,-2638.33532961,0.000212,2]
[386666694,1758455462719,-4000.0,0.0002125,4]
[386666696,1758455462728,-500.0,0.00021255,2]
[386666698,1758455462737,-500.0,0.00021297,2]
[386666700,1758455462747,-500.0,0.00021297,2]
[386666702,1758455462756,-500.0,0.00021297,2]
[386666704,1758455462766,-500.0,0.00021297,2]
[386666706,1758455462775,-500.0,0.00021297,2]
[386666708,1758455462784,-11685.68,0.00021361,2]
[386666710,1758455462795,-2500.0,0.00021364,2]
[386666712,1758455462805,-1500.0,0.00021364,2]
[386666714,1758455462814,-1000.0,0.00021369,2]
[386666716,1758455462824,-480.0,0.00021369,2]
[386666718,1758455462833,-480.0,0.00021369,2]
[386666720,1758455462842,-480.0,0.00021369,2]
[386666722,1758455462851,-480.0,0.00021369,2]
[386666724,1758455462860,-480.0,0.00021369,2]
[386666726,1758455462869,-480.0,0.00021369,2]
[386666728,1758455462880,-480.0,0.00021369,2]
[386666730,1758455462889,-480.0,0.00021369,2]
[386666732,1758455462898,-480.0,0.00021369,2]
[386666734,1758455462907,-480.0,0.00021369,2]
[386666736,1758455462916,-480.0,0.00021369,2]
[386666738,1758455462926,-480.0,0.00021369,2]
[386666740,1758455462934,-480.0,0.00021369,2]
[386666742,1758455462944,-480.0,0.00021369,2]
[386666744,1758455462953,-480.0,0.00021369,2]
[386666746,1758455462962,-480.0,0.00021369,2]
[386666748,1758455462972,-3266.23,0.00021369,2]
[386666750,1758455462981,-463.23459873,0.00021369,2]
[386666752,1758455462990,-480.0,0.00021369,2]
[386666754,1758455463000,-999.01,0.00021369,2]
[386666756,1758455463009,-480.0,0.00021369,2]
[386666758,1758455463018,-480.0,0.00021369,2]
[386666760,1758455463028,-480.0,0.00021369,2]
[386666762,1758455463038,-539.12,0.00021369,2]
[386666764,1758455463048,-948.56,0.00021369,2]
[386666766,1758455463057,-1038.88,0.00021369,2]
[386666768,1758455463067,-480.0,0.00021369,2]
[386666770,1758455463077,-622.1,0.00021369,2]
[386666772,1758455463086,-480.0,0.00021369,2]
[386666774,1758455463096,-480.0,0.00021369,2]
[386666776,1758455463105,-480.0,0.00021369,2]
[386666778,1758455463115,-480.0,0.00021369,2]
[386666780,1758455463125,-480.0,0.00021369,2]
[386666782,1758455463135,-480.0,0.00021369,2]
[386666784,1758455463145,-480.0,0.00021369,2]
[386666786,1758455463156,-480.0,0.00021369,2]
[386666788,1758455463165,-480.0,0.00021369,2]
[386666790,1758455463176,-480.0,0.00021369,2]
[386666792,1758455463185,-480.0,0.00021369,2]
[386666794,1758455463195,-725.53,0.00021369,2]
[386666796,1758455463204,-514.23,0.00021369,2]
[386666798,1758455463213,-480.0,0.00021369,2]
[386666800,1758455463224,-480.0,0.00021369,2]
[386666801,1758455463233,-480.0,0.00021369,2]
[386666803,1758455463243,-1960.54,0.00021369,2]
[386666805,1758455463253,-480.0,0.00021369,2]
[386666807,1758455463263,-480.0,0.00021369,2]
[386666809,1758455463273,-480.0,0.00021369,2]
[386666811,1758455463284,-1708.3,0.00021369,2]
[386666813,1758455463293,-480.0,0.00021369,2]
[386666815,1758455463304,-793.7,0.00021369,2]
[386666817,1758455463313,-480.0,0.00021369,2]
[386666819,1758455463323,-480.0,0.00021369,2]
[386666821,1758455463333,-480.0,0.00021369,2]
[386666823,1758455463343,-1034.45,0.00021369,2]
[386666825,1758455463352,-480.0,0.00021369,2]
[386666827,1758455463361,-595.15,0.00021369,2]
[386666829,1758455463372,-480.0,0.00021369,2]
[386666831,1758455463383,-480.0,0.00021369,2]
[386666833,1758455463393,-746.69,0.00021369,2]
[386666835,1758455463407,-480.0,0.00021369,2]
[386666837,1758455463417,-1331.21,0.00021369,2]
[386666839,1758455463426,-1041.37,0.00021369,2]
[386666841,1758455463436,-833.47,0.00021369,2]
[386666843,1758455463447,-480.0,0.00021369,2]
[386666846,1758455463457,-1633.93,0.00021369,2]
[386666847,1758455463466,-480.0,0.00021369,2]
[386666849,1758455463478,-480.0,0.00021369,2]
[386666851,1758455463490,-11074.35,0.00021369,2]
[386666854,1758455463501,-480.0,0.00021369,2]
[386666856,1758455463512,-1864.11,0.00021369,2]
[386666857,1758455463522,-493.12,0.00021369,2]
[386666859,1758455463533,-480.0,0.00021369,2]
[386666861,1758455463543,-480.0,0.00021369,2]
[386666864,1758455463554,-151.0,0.00021385,2]
[386666865,1758455463564,-2638.33532961,0.000214,2]
[386666867,1758455463574,-1657.066154,0.000214,2]
[386666869,1758455463584,-1009.85528191,0.00021416,2]
[386666871,1758455463593,-330.72140465,0.00021528,2]
[386666873,1758455463603,-460.0,0.0002154,2]
[386666875,1758455463612,-912.0013295,0.00021554,2]
[386666891,1758455463751,-587.9986705,0.00021554,2]
[386666893,1758455463760,-1442.35948479,0.00021554,2]
[386666898,1758455463802,-57.64051521,0.00021554,2]
[386666900,1758455463811,-468.8290296,0.00021554,2]
[386666902,1758455463823,-31.1709704,0.00021554,2]
[386666905,1758455463833,-226.429313,0.00021574,2]
[386666907,1758455463843,-2638.33532961,0.000216,2]
[386666909,1758455463853,-1099.89227555,0.000216,5]
[386666910,1758455463864,-795.6630736,0.00021625,2]
[386666913,1758455463874,-310.0,0.00021626,2]
[386666915,1758455463883,-339.816991,0.00021643,2]
[386666916,1758455463892,-339.816991,0.00021643,2]
[386666918,1758455463902,-339.816991,0.00021643,2]
[386666920,1758455463911,-339.816991,0.00021643,2]
[386666922,1758455463920,-372.2174171,0.00021643,2]
[386666924,1758455463930,-382.89752809,0.00021643,2]
[386666926,1758455463939,-480.0,0.00021643,2]
[386666928,1758455463948,-480.0,0.00021643,2]
[386666930,1758455463958,-480.0,0.00021643,2]
[386666932,1758455463968,-415.20408189,0.00021643,2]
[386666935,1758455463977,-480.0,0.00021643,2]
[386666947,1758455464091,-480.0,0.00021643,2]
[386666949,1758455464101,-151.0,0.00021643,2]
[386666951,1758455464110,-480.0,0.00021643,2]
[386666953,1758455464120,-480.0,0.00021643,2]
[386666955,1758455464131,-480.0,0.00021643,2]
[386666957,1758455464140,-480.0,0.00021643,2]
[386666959,1758455464150,-3266.23,0.00021643,2]
[386666961,1758455464159,-480.0,0.00021643,2]
[386666963,1758455464169,-999.01,0.00021643,2]
[386666965,1758455464179,-480.0,0.00021643,2]
[386666967,1758455464189,-480.0,0.00021643,2]
[386666969,1758455464199,-480.0,0.00021643,2]
[386666971,1758455464208,-539.12,0.00021643,2]
[386666973,1758455464217,-948.56,0.00021643,2]
[386666975,1758455464227,-1038.88,0.00021643,2]
[386666977,1758455464236,-403.90364687,0.00021643,2]
[386666979,1758455464245,-622.1,0.00021643,2]
[386666981,1758455464255,-480.0,0.00021643,2]
[386666983,1758455464264,-480.0,0.00021643,2]
[386666985,1758455464275,-480.0,0.00021643,2]
[386666987,1758455464284,-480.0,0.00021643,2]
[386666989,1758455464295,-480.0,0.00021643,2]
[386666991,1758455464304,-214.65275827,0.00021643,2]
[386666993,1758455464314,-435.29943271,0.00021643,2]
[386666995,1758455464324,-480.0,0.00021643,2]
[386666997,1758455464334,-480.0,0.00021643,2]
[386666999,1758455464347,-480.0,0.00021643,2]
[386667001,1758455464358,-725.53,0.00021643,2]
[386667003,1758455464368,-514.23,0.00021643,2]
[386667005,1758455464379,-480.0,0.00021643,2]
[386667007,1758455464391,-480.0,0.00021643,2]
[386667009,1758455464403,-480.0,0.00021643,2]
[386667011,1758455464414,-1960.54,0.00021643,2]
[386667013,1758455464424,-503.92166849,0.00021643,2]
[386667015,1758455464434,-480.0,0.00021643,2]
[386667017,1758455464445,-480.0,0.00021643,2]
[386667018,1758455464455,-1708.3,0.00021643,2]
[386667021,1758455464465,-480.0,0.00021643,2]
[386667022,1758455464475,-793.7,0.00021643,2]
[386667024,1758455464486,-480.0,0.00021643,2]
[386667026,1758455464496,-480.0,0.00021643,2]
[386667027,1758455464507,-480.0,0.00021643,2]
[386667028,1758455464517,-1034.45,0.00021643,2]
[386667029,1758455464526,-480.0,0.00021643,2]
[386667030,1758455464537,-480.0,0.00021643,2]
[386667031,1758455464547,-595.15,0.00021643,2]
[386667032,1758455464558,-480.0,0.00021643,2]
[386667033,1758455464568,-746.69,0.00021643,2]
[386667035,1758455464579,-480.0,0.00021643,2]
[386667036,1758455464588,-1331.21,0.00021643,2]
[386667037,1758455464597,-1041.37,0.00021643,2]
[386667038,1758455464606,-833.47,0.00021643,2]
[386667039,1758455464615,-480.0,0.00021643,2]
[386667040,1758455464625,-1633.93,0.00021643,2]
[386667042,1758455464635,-480.0,0.00021643,2]
[386667044,1758455464645,-480.0,0.00021643,2]
[386667046,1758455464656,-11074.35,0.00021643,2]
[386667048,1758455464666,-480.0,0.00021643,2]
[386667050,1758455464676,-1864.11,0.00021643,2]
[386667052,1758455464686,-493.12,0.00021643,2]
[386667054,1758455464696,-480.0,0.00021643,2]
[386667056,1758455464706,-480.0,0.00021643,2]
[386667058,1758455464716,-2000.0,0.00021664,2]
[386667060,1758455464726,-2000.0,0.00021664,2]
[386667062,1758455464736,-329.49260123,0.00021664,2]
[386667064,1758455464745,-1000.0,0.00021696,2]
[386667066,1758455464757,-407.2827298,0.00021699,2]
[386667068,1758455464767,-151.0,0.000217,3]
[386667070,1758455464776,-777.1898084,0.00021701,2]
[386667072,1758455464786,-310.0,0.0002171,2]
[386667074,1758455464796,-601.56640286,0.00021718,2]
[386667076,1758455464805,-217.63994139,0.00021718,2]
[386667078,1758455464815,-2638.33532961,0.000218,2]
[386667080,1758455464824,-1400.0,0.00021808,2]
[386667082,1758455464835,-310.0,0.00021812,2]
[386667084,1758455464844,-160.9257665,0.0002183,2]
[386667086,1758455464854,-158.56978987,0.00021845,2]
[386667088,1758455464864,-1123.41079606,0.00021845,2]
[386667090,1758455464874,-1000.0,0.00021845,2]
[386667092,1758455464883,-1000.0,0.00021845,2]
[386667094,1758455464893,-1000.0,0.00021845,2]
[386667096,1758455464903,-160.0,0.00021893,4]
[386667098,1758455464914,-1000.0,0.000219,2]
[386667100,1758455464923,-1000.0,0.00021912,2]
[386667102,1758455464934,-1500.0,0.00021917,2]
[386667104,1758455464945,-200.0,0.00021917,2]
[386667106,1758455464954,-200.0,0.00021917,2]
[386667108,1758455464964,-200.0,0.00021917,2]
[386667110,1758455464973,-256.39647343,0.00021917,2]
[386667112,1758455464983,-336.96409079,0.00021917,2]
[386667114,1758455464992,-480.0,0.00021917,2]
[386667116,1758455465003,-500.0,0.00021917,2]
[386667118,1758455465012,-480.0,0.00021917,2]
[386667120,1758455465021,-151.0,0.00021917,2]
[386667122,1758455465031,-151.0,0.00021917,2]
[386667124,1758455465040,-480.0,0.00021917,2]
[386667126,1758455465049,-491.6859979,0.00021917,2]
[386667128,1758455465059,-528.22965925,0.00021917,2]
[386667130,1758455465068,-480.0,0.00021917,2]
[386667131,1758455465077,-480.0,0.00021917,2]
[386667133,1758455465087,-3266.23,0.00021917,2]
[386667135,1758455465097,-480.0,0.00021917,2]
[386667137,1758455465107,-999.01,0.00021917,2]
[386667139,1758455465117,-480.0,0.00021917,2]
[386667141,1758455465126,-480.0,0.00021917,2]
[386667143,1758455465136,-480.0,0.00021917,2]
[386667146,1758455465146,-539.12,0.00021917,2]
[386667148,1758455465157,-948.56,0.00021917,2]
[386667150,1758455465166,-1038.88,0.00021917,2]
[386667152,1758455465176,-622.1,0.00021917,2]
[386667154,1758455465186,-505.46915603,0.00021917,2]
[386667156,1758455465195,-310.75772216,0.00021917,2]
[386667158,1758455465204,-480.0,0.00021917,2]
[386667160,1758455465214,-480.0,0.00021917,2]
[386667162,1758455465223,-480.0,0.00021917,2]
[386667164,1758455465232,-480.0,0.00021917,2]
[386667166,1758455465242,-480.0,0.00021917,2]
[386667167,1758455465251,-480.0,0.00021917,2]
[386667169,1758455465261,-725.53,0.00021917,2]
[386667171,1758455465271,-514.23,0.00021917,2]
[386667173,1758455465281,-480.0,0.00021917,2]
[386667175,1758455465291,-480.0,0.00021917,2]
[386667177,1758455465300,-480.0,0.00021917,2]
[386667179,1758455465310,-1960.54,0.00021917,2]
[386667181,1758455465320,-480.0,0.00021917,2]
[386667184,1758455465330,-480.0,0.00021917,2]
[386667186,1758455465340,-1708.3,0.00021917,2]
[386667187,1758455465350,-480.0,0.00021917,2]
[386667190,1758455465360,-793.7,0.00021917,2]
[386667192,1758455465370,-480.0,0.00021917,2]
[386667194,1758455465380,-480.0,0.00021917,2]
[386667196,1758455465389,-480.0,0.00021917,2]
[386667198,1758455465400,-1034.45,0.00021917,2]
[386667200,1758455465414,-480.0,0.00021917,2]
[386667202,1758455465423,-480.0,0.00021917,2]
[386667203,1758455465433,-595.15,0.00021917,2]
[386667206,1758455465443,-480.0,0.00021917,2]
[386667207,1758455465454,-746.69,0.00021917,2]
[386667209,1758455465464,-480.0,0.00021917,2]
[386667211,1758455465474,-1331.21,0.00021917,2]
[386667213,1758455465484,-1041.37,0.00021917,2]
[386667215,1758455465494,-480.0,0.00021917,2]
[386667217,1758455465504,-833.47,0.00021917,2]
[386667219,1758455465514,-1633.93,0.00021917,2]
[386667221,1758455465524,-480.0,0.00021917,2]
[386667223,1758455465534,-480.0,0.00021917,2]
[386667225,1758455465543,-11074.35,0.00021917,2]
[386667228,1758455465553,-480.0,0.00021917,2]
[386667230,1758455465564,-1864.11,0.00021917,2]
[386667231,1758455465573,-493.12,0.00021917,2]
[386667234,1758455465584,-480.0,0.00021917,2]
[386667236,1758455465593,-175.939137,0.00021918,2]
[386667238,1758455465603,-150.0,0.00021918,2]
[386667240,1758455465612,-156.402411,0.00021984,7]
[386667241,1758455465622,-310.0,0.00021985,2]
[386667243,1758455465632,-151.0,0.00022,3]
[386667245,1758455465642,-2638.33532961,0.00022,2]
[386667248,1758455465653,-160.0,0.00022,2]
[386667250,1758455465662,-669.16,0.00022,2]
[386667252,1758455465671,-12379.28492967,0.00022044,2]
[386667254,1758455465681,-310.0,0.00022063,2]
[386667255,1758455465691,-1637.1559306,0.00022074,2]
[386667257,1758455465700,-151.57806973,0.00022083,2]
[386667259,1758455465709,-560.0,0.00022088,2]
[386667261,1758455465718,-1188.6602345,0.000221,2]
[386667263,1758455465727,-2000.0,0.00022102,2]
[386667265,1758455465738,-2000.0,0.00022102,2]
[386667267,1758455465747,-310.0,0.00022113,2]
[386667269,1758455465757,-177.536429,0.0002219,2]
[386667271,1758455465766,-480.0,0.00022191,2]
[386667273,1758455465775,-489.66,0.00022191,2]
[386667275,1758455465785,-480.0,0.00022191,2]
[386667277,1758455465795,-480.0,0.00022191,2]
[386667279,1758455465805,-480.0,0.00022191,2]
[386667281,1758455465814,-3266.23,0.00022191,2]
[386667283,1758455465823,-480.0,0.00022191,2]
[386667285,1758455465833,-999.01,0.00022191,2]
[386667287,1758455465841,-480.0,0.00022191,2]
[386667289,1758455465851,-480.0,0.00022191,2]
[386667291,1758455465861,-539.12,0.00022191,2]
[386667293,1758455465870,-948.56,0.00022191,2]
[386667295,1758455465880,-1038.88,0.00022191,2]
[386667297,1758455465889,-622.1,0.00022191,2]
[386667299,1758455465899,-480.0,0.00022191,2]
[386667301,1758455465908,-480.0,0.00022191,2]
[386667303,1758455465917,-480.0,0.00022191,2]
[386667305,1758455465927,-480.0,0.00022191,2]
[386667307,1758455465937,-480.0,0.00022191,2]
[386667309,1758455465947,-480.0,0.00022191,2]
[386667311,1758455465956,-725.53,0.00022191,2]
[386667313,1758455465966,-514.23,0.00022191,2]
[386667315,1758455465975,-480.0,0.00022191,2]
[386667317,1758455465984,-480.0,0.00022191,2]
[386667319,1758455465994,-480.0,0.00022191,2]
[386667321,1758455466005,-1960.54,0.00022191,2]
[386667323,1758455466015,-480.0,0.00022191,2]
[386667325,1758455466024,-480.0,0.00022191,2]
[386667327,1758455466034,-1708.3,0.00022191,2]
[386667329,1758455466043,-480.0,0.00022191,2]
[386667331,1758455466052,-793.7,0.00022191,2]
[386667333,1758455466061,-480.0,0.00022191,2]
[386667335,1758455466071,-480.0,0.00022191,2]
[386667337,1758455466080,-480.0,0.00022191,2]
[386667339,1758455466089,-1034.45,0.00022191,2]
[386667341,1758455466098,-480.0,0.00022191,2]
[386667343,1758455466107,-480.0,0.00022191,2]
[386667355,1758455466219,-595.15,0.00022191,2]
[386667357,1758455466229,-480.0,0.00022191,2]
[386667359,1758455466239,-746.69,0.00022191,2]
[386667361,1758455466248,-480.0,0.00022191,2]
[386667363,1758455466258,-1331.21,0.00022191,2]
[386667365,1758455466267,-1041.37,0.00022191,2]
[386667367,1758455466277,-480.0,0.00022191,2]
[386667369,1758455466286,-833.47,0.00022191,2]
[386667371,1758455466297,-1633.93,0.00022191,2]
[386667373,1758455466307,-480.0,0.00022191,2]
[386667375,1758455466317,-480.0,0.00022191,2]
[386667377,1758455466328,-11074.35,0.00022191,2]
[386667379,1758455466338,-480.0,0.00022191,2]
[386667381,1758455466348,-1864.11,0.00022191,2]
[386667383,1758455466357,-493.12,0.00022191,2]
[386667385,1758455466368,-480.0,0.00022191,2]
[386667387,1758455466377,-2000.0,0.000222,2]
[386667389,1758455466389,-2000.0,0.000222,2]
[386667391,1758455466398,-2638.33532961,0.000222,2]
[386667393,1758455466412,-310.0,0.00022225,2]
[386667395,1758455466421,-1500.0,0.00022244,2]
[386667397,1758455466431,-173.4144864,0.00022264,2]
[386667399,1758455466440,-15580.91,0.00022289,2]
[386667401,1758455466450,-500.0,0.00022393,2]
[386667403,1758455466460,-1000.0,0.000224,2]
[386667405,1758455466470,-999.18175569,0.00022427,2]
[386667407,1758455466480,-2000.0,0.00022465,2]
[386667409,1758455466490,-480.0,0.00022465,2]
[386667411,1758455466500,-480.0,0.00022465,2]
[386667413,1758455466510,-480.0,0.00022465,2]
[386667415,1758455466520,-480.0,0.00022465,2]
[386667417,1758455466529,-3266.23,0.00022465,2]
[386667419,1758455466539,-480.0,0.00022465,2]
[386667421,1758455466548,-999.01,0.00022465,2]
[386667423,1758455466558,-480.0,0.00022465,2]
[386667425,1758455466567,-480.0,0.00022465,2]
[386667427,1758455466577,-539.12,0.00022465,2]
[386667429,1758455466587,-948.56,0.00022465,2]
[386667431,1758455466596,-1038.88,0.00022465,2]
[386667433,1758455466606,-622.1,0.00022465,2]
[386667435,1758455466616,-480.0,0.00022465,2]
[386667437,1758455466625,-480.0,0.00022465,2]
[386667440,1758455466636,-480.0,0.00022465,2]
[386667442,1758455466645,-480.0,0.00022465,2]
[386667443,1758455466655,-725.53,0.00022465,2]
[386667445,1758455466664,-514.23,0.00022465,2]
[386667447,1758455466674,-357.07,0.00022465,2]
[386667449,1758455466683,-480.0,0.00022465,2]
[386667450,1758455466692,-480.0,0.00022465,2]
[386667451,1758455466701,-1960.54,0.00022465,2]
[386667452,1758455466711,-480.0,0.00022465,2]
[386667453,1758455466720,-480.0,0.00022465,2]
[386667454,1758455466729,-1708.3,0.00022465,2]
[386667455,1758455466739,-793.7,0.00022465,2]
[386667456,1758455466748,-480.0,0.00022465,2]
[386667457,1758455466757,-480.0,0.00022465,2]
[386667458,1758455466767,-480.0,0.00022465,2]
[386667459,1758455466775,-1034.45,0.00022465,2]
[386667460,1758455466785,-480.0,0.00022465,2]
[386667461,1758455466794,-480.0,0.00022465,2]
[386667462,1758455466803,-595.15,0.00022465,2]
[386667463,1758455466813,-480.0,0.00022465,2]
[386667464,1758455466823,-196.13427035,0.00022465,2]
[386667465,1758455467006,-608.86015186,0.00019178,2]
[386667466,1758455467016,-151.0,0.00019452,2]
[386667468,1758455467026,-151.0,0.00019726,2]
[386667470,1758455467035,-548.49,0.00021917,2]
[386667472,1758455467045,-550.55572965,0.00022465,2]
[386667474,1758455467056,-480.0,0.00022465,2]
[386667477,1758455467066,-1331.21,0.00022465,2]
[386667479,1758455467076,-1041.37,0.00022465,2]
[386667481,1758455467086,-480.0,0.00022465,2]
[386667483,1758455467095,-833.47,0.00022465,2]
[386667485,1758455467105,-1633.93,0.00022465,2]
[386667487,1758455467115,-480.0,0.00022465,2]
[386667489,1758455467124,-480.0,0.00022465,2]
[386667491,1758455467133,-10611.32407802,0.00022465,2]
[386667493,1758455467146,-463.02592198,0.00022465,2]
[386667495,1758455467156,-208.75344637,0.00022465,2]
[386667497,1758455467167,-271.24655363,0.00022465,2]
[386667499,1758455467176,-274.95621361,0.00022465,2]
[386667501,1758455467187,-368.43763188,0.00022465,2]
[386667504,1758455467198,-1220.71615451,0.00022465,2]
[386667505,1758455467208,-493.12,0.00022465,2]
[386667508,1758455467218,-480.0,0.00022465,2]
[386667510,1758455467227,-300.0,0.00022466,2]
[386667511,1758455467237,-800.0,0.00022483,2]
[386667513,1758455467247,-663.9702285,0.00022492,2]
[386667515,1758455467256,-310.0,0.00022495,2]
[386667517,1758455467266,-8907.6542176,0.000225,4]
[386667519,1758455467275,-4000.0,0.000225,4]
[386667521,1758455467285,-1056.84445792,0.00022541,2]
[386667524,1758455467299,-1213.87500442,0.00022541,2]
[386667551,1758455467568,-2729.28053766,0.00022541,2]
[386667553,1758455467578,-800.0,0.00022552,2]
[386667555,1758455467589,-310.0,0.00022597,2]
[386667557,1758455467599,-188.0,0.00022603,7]
[386667559,1758455467608,-660.0,0.00022636,2]
[386667561,1758455467617,-800.0,0.00022645,2]
[386667563,1758455467627,-587.0,0.00022645,2]
[386667565,1758455467636,-51.76421574,0.00022645,2]
[386667581,1758455467784,-538.75,0.00019178,2]
[386667583,1758455467793,-480.0,0.00019178,2]
[386667585,1758455467804,-480.0,0.00019178,2]
[386667587,1758455467813,-480.0,0.00019178,2]
[386667589,1758455467823,-480.0,0.00019178,2]
[386667591,1758455467832,-151.0,0.00019452,2]
[386667593,1758455467842,-99.97858726,0.00019452,2]
[386667595,1758455467853,-383.11320147,0.00019452,2]
[386667597,1758455467863,-151.0,0.00019726,2]
[386667599,1758455467873,-151.0,0.0002,2]
[386667601,1758455467883,-151.0,0.00020321,2]
[386667603,1758455467893,-151.0,0.00020684,2]
[386667605,1758455467902,-535.23578426,0.00022645,2]
[386667607,1758455467912,-254.0,0.00022645,2]
[386667610,1758455467921,-1289.0,0.00022646,2]
[386667611,1758455467931,-2175.22870349,0.00022649,2]
[386667614,1758455467941,-2500.0,0.00022649,2]
[386667615,1758455467950,-365.2988649,0.0002272,2]
[386667617,1758455467959,-800.0,0.00022735,2]
[386667620,1758455467969,-960.76886981,0.00022736,2]
[386667621,1758455467978,-339.816991,0.00022739,7]
[386667624,1758455467988,-339.816991,0.00022739,7]
[386667625,1758455467997,-339.816991,0.00022739,7]
[386667627,1758455468006,-339.816991,0.00022739,7]
[386667630,1758455468016,-300.33,0.00022739,2]
[386667631,1758455468025,-480.0,0.00022739,2]
[386667633,1758455468034,-480.0,0.00022739,2]
[386667635,1758455468044,-3266.23,0.00022739,2]
[386667648,1758455468150,-480.0,0.00022739,2]
[386667650,1758455468159,-999.01,0.00022739,2]
[386667652,1758455468169,-561.21276544,0.00022739,2]
[386667654,1758455468178,-539.12,0.00022739,2]
[386667656,1758455468187,-948.56,0.00022739,2]
[386667658,1758455468197,-1038.88,0.00022739,2]
[386667660,1758455468206,-622.1,0.00022739,2]
[386667662,1758455468215,-480.0,0.00022739,2]
[386667664,1758455468225,-480.0,0.00022739,2]
[386667666,1758455468234,-480.0,0.00022739,2]
[386667668,1758455468243,-725.53,0.00022739,2]
[386667670,1758455468253,-514.23,0.00022739,2]